fUSD/lending_fUSD_20240712
["ID","MTS","AMOUNT","RATE_DAILY","PERIOD"]
[331796634,1720765908770,-637.70343096,0.00014027,2]
[331796635,1720765908779,-940.12,0.00014027,2]
[331796636,1720765908789,-500.0,0.00014027,2]
[331796637,1720765908798,-500.0,0.00014027,2]
[331796638,1720765908807,-500.0,0.00014027,2]
[331796639,1720765908816,-1103.87,0.00014027,2]
[331796640,1720765908826,-838.82,0.00014027,2]
[331796641,1720765908836,-500.0,0.00014027,2]
[331796642,1720765908845,-906.68,0.00014027,2]
[331796643,1720765908855,-774.99,0.00014027,2]
[331796644,1720765908864,-500.0,0.00014027,2]
[331796645,1720765908873,-1574.49,0.00014027,2]
[331796646,1720765908882,-1003.46,0.00014027,2]
[331796647,1720765908892,-776.49,0.00014027,2]
[331796648,1720765908901,-715.19,0.00014027,2]
[331796649,1720765908911,-500.0,0.00014027,2]
[331796650,1720765908920,-2671.99,0.00014027,2]
[331796651,1720765908930,-811.17,0.00014027,2]
[331796652,1720765908939,-1169.16,0.00014027,2]
[331796653,1720765908949,-804.64,0.00014027,2]
[331796654,1720765908960,-516.06,0.00014027,2]
[331796655,1720765908969,-500.0,0.00014027,2]
[331796656,1720765908978,-372.08284319,0.00014027,2]
[331796657,1720765908988,-1567.42,0.00014027,2]
[331796658,1720765908997,-1123.97,0.00014027,2]
[331796659,1720765909007,-1159.17,0.00014027,2]
[331796660,1720765909016,-7796.51,0.00014027,2]
[331796661,1720765909026,-682.47,0.00014027,2]
[331796662,1720765909035,-3427.86,0.00014027,2]
[331796663,1720765909045,-884.1,0.00014027,2]
[331796664,1720765909054,-761.42,0.00014027,2]
[331796665,1720765909063,-500.0,0.00014027,2]
[331796666,1720765909073,-500.0,0.00014027,2]
[331796667,1720765909082,-500.0,0.00014027,2]
[331796668,1720765909092,-500.0,0.00014027,2]
[331796669,1720765909102,-2349.61,0.00014027,2]
[331796670,1720765909111,-2824.19,0.00014027,2]
[331796671,1720765909120,-544.06,0.00014027,2]
[331796672,1720765909130,-1413.14,0.00014027,2]
[331796673,1720765909139,-500.0,0.00014027,2]
[331796674,1720765909148,-500.0,0.00014027,2]
[331796675,1720765909158,-500.0,0.00014027,2]
[331796676,1720765909168,-746.16,0.00014027,2]
[331796677,1720765909177,-1040.64,0.00014027,2]
[331796678,1720765909186,-568.05,0.00014027,2]
[331796679,1720765909196,-1225.06,0.00014027,2]
[331796680,1720765909205,-500.0,0.00014027,2]
[331796681,1720765909215,-945.48,0.00014027,2]
[331796682,1720765909228,-502.01,0.00014027,2]
[331796683,1720765909237,-1864.03,0.00014027,2]
[331796684,1720765909246,-500.0,0.00014027,2]
[331796685,1720765909257,-782.62,0.00014027,2]
[331796686,1720765909267,-3139.48,0.00014027,2]
[331796687,1720765909276,-760.77,0.00014027,2]
[331796688,1720765909286,-967.92,0.00014027,2]
[331796689,1720765909295,-817.59,0.00014027,2]
[331796690,1720765909304,-672.02,0.00014027,2]
[331796691,1720765909314,-500.0,0.00014027,2]
[331796692,1720765909324,-500.0,0.00014027,2]
[331796693,1720765909333,-1369.87,0.00014027,2]
[331796694,1720765909342,-927.94,0.00014027,2]
[331796695,1720765909352,-503.52,0.00014027,2]
[331796696,1720765909361,-500.0,0.00014027,2]
[331796697,1720765909371,-500.0,0.00014027,2]
[331796698,1720765909380,-500.0,0.00014027,2]
[331796699,1720765909389,-510.11,0.00014027,2]
[331796700,1720765909398,-883.29,0.00014027,2]
[331796701,1720765909408,-500.0,0.00014027,2]
[331796702,1720765909418,-500.0,0.00014027,2]
[331796703,1720765909427,-703.12,0.00014027,2]
[331796704,1720765909437,-913.43,0.00014027,2]
[331796705,1720765909447,-1249.82,0.00014027,2]
[331796706,1720765909457,-698.85,0.00014027,2]
[331796707,1720765909466,-513.61,0.00014027,2]
[331796708,1720765909476,-500.0,0.00014027,2]
[331796709,1720765909485,-500.0,0.00014027,2]
[331796710,1720765909494,-500.0,0.00014027,2]
[331796711,1720765909505,-3390.01,0.00014027,2]
[331796712,1720765909517,-522.91,0.00014027,2]
[331796713,1720765909527,-977.7,0.00014027,2]
[331796714,1720765909538,-500.0,0.00014027,2]
[331796715,1720765909549,-641.99,0.00014027,2]
[331796716,1720765909558,-853.13,0.00014027,2]
[331796717,1720765909568,-760.44,0.00014027,2]
[331796718,1720765909577,-534.54,0.00014027,2]
[331796719,1720765909590,-500.0,0.00014027,2]
[331796720,1720765909600,-789.27,0.00014027,2]
[331796721,1720765909609,-1308.59,0.00014027,2]
[331796722,1720765909619,-158.92801915,0.00014055,2]
[331796723,1720765909629,-162.840988,0.00014055,2]
[331796724,1720765909638,-1343.771106,0.00014055,2]
[331796725,1720765909648,-1033.431013,0.00014055,2]
[331796726,1720765909658,-1613.343933,0.00014055,2]
[331796727,1720765909667,-367.216527,0.00014055,2]
[331796728,1720765909676,-457.782995,0.00014055,2]
[331796729,1720765909685,-1366.434122,0.00014055,2]
[331796730,1720765909695,-367.216526,0.00014055,2]
[331796731,1720765909865,-457.782994,0.00014055,2]
[331796732,1720765909874,-203.551235,0.00014055,2]
[331796733,1720765909884,-500.0,0.00014071,2]
[331796734,1720765909893,-164.270083,0.00014082,2]
[331796735,1720765909902,-164.270083,0.00014082,2]
[331796736,1720765909912,-164.270083,0.00014082,2]
[331796737,1720765909922,-164.270079,0.00014082,2]
[331796738,1720765909932,-500.0,0.00014082,2]
[331796739,1720765909941,-500.0,0.00014082,2]
[331796740,1720765909952,-500.0,0.00014082,2]
[331796741,1720765909961,-500.0,0.00014082,2]
[331796742,1720765909971,-500.0,0.00014082,2]
[331796743,1720765909980,-500.0,0.00014082,2]
[331796744,1720765909989,-500.0,0.00014082,2]
[331796745,1720765909999,-622.77499004,0.00014082,2]
[331796746,1720765910008,-600.13,0.00014082,2]
[331796747,1720765910017,-500.0,0.00014082,2]
[331796748,1720765910026,-533.46,0.00014082,2]
[331796749,1720765910035,-306.8421963,0.00014082,2]
[331796750,1720765910045,-500.0,0.00014082,2]
[331796751,1720765910054,-500.0,0.00014082,2]
[331796752,1720765910063,-547.29,0.00014082,2]
[331796753,1720765910072,-527.94,0.00014082,2]
[331796754,1720765910081,-500.0,0.00014082,2]
[331796755,1720765910091,-500.0,0.00014082,2]
[331796756,1720765910100,-829.62,0.00014082,2]
[331796757,1720765910110,-678.42,0.00014082,2]
[331796758,1720765910119,-500.0,0.00014082,2]
[331796759,1720765910129,-500.0,0.00014082,2]
[331796760,1720765910139,-500.0,0.00014082,2]
[331796761,1720765910148,-1078.13,0.00014082,2]
[331796762,1720765910157,-500.0,0.00014082,2]
[331796763,1720765910167,-500.0,0.00014082,2]
[331796764,1720765910176,-599.97,0.00014082,2]
[331796765,1720765910185,-572.91,0.00014082,2]
[331796766,1720765910194,-403.66030109,0.00014082,2]
[331796767,1720765910204,-500.0,0.00014082,2]
[331796768,1720765910213,-500.0,0.00014082,2]
[331796769,1720765910222,-500.0,0.00014082,2]
[331796770,1720765910231,-500.0,0.00014082,2]
[331796771,1720765910240,-541.87,0.00014082,2]
[331796772,1720765910250,-561.01,0.00014082,2]
[331796773,1720765910259,-500.0,0.00014082,2]
[331796774,1720765910268,-526.37,0.00014082,2]
[331796775,1720765910278,-500.0,0.00014082,2]
[331796776,1720765910287,-405.92940459,0.00014082,2]
[331796777,1720765910296,-190.88975237,0.00014082,2]
[331796778,1720765910305,-500.0,0.00014082,2]
[331796779,1720765910315,-658.35,0.00014082,2]
[331796780,1720765910324,-500.0,0.00014082,2]
[331796781,1720765910333,-597.81,0.00014082,2]
[331796782,1720765910342,-665.34,0.00014082,2]
[331796783,1720765910351,-879.54,0.00014082,2]
[331796784,1720765910360,-500.0,0.00014082,2]
[331796785,1720765910370,-274.82946028,0.00014082,2]
[331796786,1720765910378,-1042.83,0.00014082,2]
[331796787,1720765910387,-500.0,0.00014082,2]
[331796788,1720765910397,-500.0,0.00014082,2]
[331796789,1720765910406,-500.0,0.00014082,2]
[331796790,1720765910415,-500.0,0.00014082,2]
[331796791,1720765910425,-801.96,0.00014082,2]
[331796792,1720765910434,-676.83,0.00014082,2]
[331796793,1720765910444,-576.46,0.00014082,2]
[331796794,1720765910455,-679.71,0.00014082,2]
[331796795,1720765910465,-530.64063063,0.00014082,2]
[331796796,1720765910474,-699.82,0.00014082,2]
[331796797,1720765910484,-500.0,0.00014082,2]
[331796798,1720765910494,-500.0,0.00014082,2]
[331796799,1720765910504,-902.64,0.00014082,2]
[331796800,1720765910516,-500.0,0.00014082,2]
[331796801,1720765910526,-500.0,0.00014082,2]
[331796802,1720765910535,-969.66,0.00014082,2]
[331796803,1720765910547,-1386.9,0.00014082,2]
[331796804,1720765910556,-500.0,0.00014082,2]
[331796805,1720765910566,-521.03,0.00014082,2]
[331796806,1720765910576,-500.0,0.00014082,2]
[331796807,1720765910586,-251.43,0.00014082,2]
[331796808,1720765910596,-500.0,0.00014082,2]
[331796809,1720765910605,-416.45715767,0.00014082,2]
[331796810,1720765910614,-500.0,0.00014082,2]
[331796811,1720765910624,-500.0,0.00014082,2]
[331796812,1720765910634,-832.86,0.00014082,2]
[331796813,1720765910643,-1142.56,0.00014082,2]
[331796814,1720765910652,-584.03,0.00014082,2]
[331796815,1720765910662,-678.02,0.00014082,2]
[331796816,1720765910671,-965.58,0.00014082,2]
[331796817,1720765910681,-980.86,0.00014082,2]
[331796818,1720765910690,-500.0,0.00014082,2]
[331796819,1720765910700,-500.0,0.00014082,2]
[331796820,1720765910710,-500.0,0.00014082,2]
[331796821,1720765910719,-625.22,0.00014082,2]
[331796822,1720765910729,-500.0,0.00014082,2]
[331796823,1720765910738,-1043.71,0.00014082,2]
[331796824,1720765910748,-500.0,0.00014082,2]
[331796825,1720765910758,-1095.96,0.00014082,2]
[331796826,1720765910768,-663.07,0.00014082,2]
[331796827,1720765910777,-500.0,0.00014082,2]
[331796828,1720765910789,-1311.76,0.00014082,2]
[331796829,1720765910801,-500.0,0.00014082,2]
[331796830,1720765910814,-1064.74,0.00014082,2]
[331796831,1720765910825,-500.0,0.00014082,2]
[331796832,1720765910836,-500.0,0.00014082,2]
[331796833,1720765910847,-500.0,0.00014082,2]
[331796834,1720765910857,-1453.03,0.00014082,2]
[331796835,1720765910867,-500.0,0.00014082,2]
[331796836,1720765910878,-506.91,0.00014082,2]
[331796837,1720765910890,-625.46,0.00014082,2]
[331796838,1720765910901,-651.67,0.00014082,2]
[331796839,1720765910911,-1301.15,0.00014082,2]
[331796840,1720765910921,-500.0,0.00014082,2]
[331796841,1720765910931,-500.0,0.00014082,2]
[331796842,1720765910941,-500.0,0.00014082,2]
[331796843,1720765910951,-500.0,0.00014082,2]
[331796844,1720765910961,-618.62,0.00014082,2]
[331796845,1720765910971,-500.0,0.00014082,2]
[331796846,1720765910982,-1182.83,0.00014082,2]
[331796847,1720765910993,-871.11,0.00014082,2]
[331796848,1720765911003,-500.0,0.00014082,2]
[331796849,1720765911012,-886.56,0.00014082,2]
[331796850,1720765911023,-500.0,0.00014082,2]
[331796851,1720765911033,-1085.4,0.00014082,2]
[331796852,1720765911042,-601.44,0.00014082,2]
[331796853,1720765911051,-896.6,0.00014082,2]
[331796854,1720765911061,-830.96,0.00014082,2]
[331796855,1720765911071,-500.0,0.00014082,2]
[331796856,1720765911081,-674.06,0.00014082,2]
[331796857,1720765911090,-1895.01,0.00014082,2]
[331796858,1720765911099,-1172.9,0.00014082,2]
[331796859,1720765911109,-1660.92,0.00014082,2]
[331796860,1720765911119,-644.5,0.00014082,2]
[331796861,1720765911128,-1467.31,0.00014082,2]
[331796862,1720765911138,-500.0,0.00014082,2]
[331796863,1720765911148,-981.49,0.00014082,2]
[331796864,1720765911157,-500.0,0.00014082,2]
[331796865,1720765911166,-1112.45,0.00014082,2]
[331796866,1720765911175,-721.53,0.00014082,2]
[331796867,1720765911185,-500.0,0.00014082,2]
[331796868,1720765911195,-500.0,0.00014082,2]
[331796869,1720765911204,-773.09,0.00014082,2]
[331796870,1720765911214,-235.13724927,0.00014082,2]
[331796871,1720765911226,-750.22,0.00014082,2]
[331796872,1720765911235,-500.0,0.00014082,2]
[331796873,1720765911245,-500.0,0.00014082,2]
[331796874,1720765911254,-617.12,0.00014082,2]
[331796875,1720765911264,-1485.55,0.00014082,2]
[331796876,1720765911273,-310.25,0.00014082,2]
[331796877,1720765911284,-645.73,0.00014082,2]
[331796878,1720765911296,-609.33,0.00014082,2]
[331796879,1720765911307,-500.0,0.00014082,2]
[331796880,1720765911318,-1043.11,0.00014082,2]
[331796881,1720765911329,-215.9,0.00014082,2]
[331796882,1720765911340,-577.94,0.00014082,2]
[331796883,1720765911350,-1001.09,0.00014082,2]
[331796884,1720765911361,-572.94,0.00014082,2]
[331796885,1720765911372,-826.26,0.00014082,2]
[331796886,1720765911382,-500.0,0.00014082,2]
[331796887,1720765911391,-863.68,0.00014082,2]
[331796888,1720765911402,-500.0,0.00014082,2]
[331796889,1720765911411,-978.71,0.00014082,2]
[331796890,1720765911421,-927.14,0.00014082,2]
[331796891,1720765911432,-1033.49,0.00014082,2]
[331796892,1720765911442,-500.0,0.00014082,2]
[331796893,1720765911452,-500.0,0.00014082,2]
[331796894,1720765911462,-584.99,0.00014082,2]
[331796895,1720765911473,-1551.06,0.00014082,2]
[331796896,1720765911483,-924.22,0.00014082,2]
[331796897,1720765911492,-500.0,0.00014082,2]
[331796898,1720765911502,-936.64,0.00014082,2]
[331796899,1720765911515,-157.15,0.00014082,2]
[331796900,1720765911525,-500.0,0.00014082,2]
[331796901,1720765911535,-500.0,0.00014082,2]
[331796902,1720765911544,-500.0,0.00014082,2]
[331796903,1720765911554,-583.16,0.00014082,2]
[331796904,1720765911564,-1266.54,0.00014082,2]
[331796905,1720765911573,-500.0,0.00014082,2]
[331796906,1720765911584,-1145.72,0.00014082,2]
[331796907,1720765911594,-500.0,0.00014082,2]
[331796908,1720765911603,-500.0,0.00014082,2]
[331796909,1720765911612,-628.89,0.00014082,2]
[331796910,1720765911623,-1072.75,0.00014082,2]
[331796911,1720765911633,-617.45,0.00014082,2]
[331796912,1720765911644,-882.64,0.00014082,2]
[331796913,1720765911656,-500.0,0.00014082,2]
[331796914,1720765911666,-908.15,0.00014082,2]
[331796915,1720765911676,-500.0,0.00014082,2]
[331796916,1720765911687,-597.8,0.00014082,2]
[331796917,1720765911698,-1413.12,0.00014082,2]
[331796918,1720765911707,-500.0,0.00014082,2]
[331796919,1720765911716,-684.65,0.00014082,2]
[331796920,1720765911726,-1269.4,0.00014082,2]
[331796921,1720765911736,-1009.57,0.00014082,2]
[331796922,1720765911746,-820.34,0.00014082,2]
[331796923,1720765911757,-570.33,0.00014082,2]
[331796924,1720765911768,-751.75,0.00014082,2]
[331796925,1720765911778,-500.0,0.00014082,2]
[331796926,1720765911789,-500.0,0.00014082,2]
[331796927,1720765911799,-1287.67,0.00014082,2]
[331796928,1720765911809,-922.77,0.00014082,2]
[331796929,1720765911819,-500.0,0.00014082,2]
[331796930,1720765911829,-1345.39,0.00014082,2]
[331796931,1720765911838,-649.45,0.00014082,2]
[331796932,1720765911848,-566.074948,0.00014082,2]
[331796933,1720765911857,-536.18,0.00014082,2]
[331796934,1720765911867,-500.0,0.00014082,2]
[331796935,1720765911877,-895.96,0.00014082,2]
[331796936,1720765911886,-1632.41,0.00014082,2]
[331796937,1720765911896,-566.55,0.00014082,2]
[331796938,1720765911906,-583.88,0.00014082,2]
[331796939,1720765911915,-729.38,0.00014082,2]
[331796940,1720765911925,-500.0,0.00014082,2]
[331796941,1720765911935,-500.0,0.00014082,2]
[331796942,1720765911945,-500.0,0.00014082,2]
[331796943,1720765911955,-1661.47,0.00014082,2]
[331796944,1720765911965,-500.0,0.00014082,2]
[331796945,1720765911975,-1622.68,0.00014082,2]
[331796946,1720765911985,-1461.03,0.00014082,2]
[331796947,1720765911994,-932.1,0.00014082,2]
[331796948,1720765912002,-600.18,0.00014082,2]
[331796949,1720765912012,-500.0,0.00014082,2]
[331796950,1720765912022,-652.76,0.00014082,2]
[331796951,1720765912031,-590.79,0.00014082,2]
[331796952,1720765912040,-649.76,0.00014082,2]
[331796953,1720765912050,-562.94,0.00014082,2]
[331796954,1720765912059,-500.0,0.00014082,2]
[331796955,1720765912069,-511.55,0.00014082,2]
[331796956,1720765912077,-500.0,0.00014082,2]
[331796957,1720765912087,-682.84,0.00014082,2]
[331796958,1720765912096,-500.0,0.00014082,2]
[331796959,1720765912106,-557.92,0.00014082,2]
[331796960,1720765912116,-913.11,0.00014082,2]
[331796961,1720765912125,-500.0,0.00014082,2]
[331796962,1720765912135,-500.0,0.00014082,2]
[331796963,1720765912145,-665.1,0.00014082,2]
[331796964,1720765912154,-500.0,0.00014082,2]
[331796965,1720765912163,-647.57,0.00014082,2]
[331796966,1720765912172,-153.90078026,0.00014082,2]
[331796967,1720765912182,-655.14,0.00014082,2]
[331796968,1720765912191,-1070.59,0.00014082,2]
[331796969,1720765912201,-500.0,0.00014082,2]
[331796970,1720765912211,-500.0,0.00014082,2]
[331796971,1720765912220,-500.0,0.00014082,2]
[331796972,1720765912230,-549.77,0.00014082,2]
[331796973,1720765912239,-955.34,0.00014082,2]
[331796974,1720765912248,-500.0,0.00014082,2]
[331796975,1720765912257,-500.0,0.00014082,2]
[331796976,1720765912266,-500.0,0.00014082,2]
[331796977,1720765912276,-505.14900711,0.00014082,2]
[331796978,1720765912286,-572.55,0.00014082,2]
[331796979,1720765912295,-1087.88,0.00014082,2]
[331796980,1720765912304,-924.38,0.00014082,2]
[331796981,1720765912313,-500.0,0.00014082,2]
[331796982,1720765912323,-500.0,0.00014082,2]
[331796983,1720765912332,-895.76,0.00014082,2]
[331796984,1720765912341,-877.72,0.00014082,2]
[331796985,1720765912350,-811.35,0.00014082,2]
[331796986,1720765912359,-701.46,0.00014082,2]
[331796987,1720765912368,-500.0,0.00014082,2]
[331796988,1720765912377,-943.64,0.00014082,2]
[331796989,1720765912387,-500.0,0.00014082,2]
[331796990,1720765912396,-535.3,0.00014082,2]
[331796991,1720765912406,-500.0,0.00014082,2]
[331796992,1720765912415,-951.0,0.00014082,2]
[331796993,1720765912424,-533.99,0.00014082,2]
[331796994,1720765912435,-500.0,0.00014082,2]
[331796995,1720765912445,-691.79,0.00014082,2]
[331796996,1720765912455,-500.0,0.00014082,2]
[331796997,1720765912464,-749.0,0.00014082,2]
[331796998,1720765912474,-646.61,0.00014082,2]
[331796999,1720765912483,-1153.39,0.00014082,2]
[331797000,1720765912492,-828.98,0.00014082,2]
[331797001,1720765912502,-500.0,0.00014082,2]
[331797002,1720765912515,-500.0,0.00014082,2]
[331797003,1720765912525,-797.92,0.00014082,2]
[331797004,1720765912534,-678.2,0.00014082,2]
[331797005,1720765912544,-500.0,0.00014082,2]
[331797006,1720765912554,-742.09,0.00014082,2]
[331797007,1720765912564,-925.55,0.00014082,2]
[331797008,1720765912573,-718.26,0.00014082,2]
[331797009,1720765912741,-660.22,0.00014082,2]
[331797010,1720765912751,-500.0,0.00014082,2]
[331797011,1720765912761,-685.66,0.00014082,2]
[331797012,1720765912771,-616.92,0.00014082,2]
[331797013,1720765912781,-626.69,0.00014082,2]
[331797014,1720765912791,-578.66,0.00014082,2]
[331797015,1720765912800,-1182.27,0.00014082,2]
[331797016,1720765912810,-751.88,0.00014082,2]
[331797017,1720765912820,-500.0,0.00014082,2]
[331797018,1720765912829,-788.87,0.00014082,2]
[331797019,1720765912839,-589.96,0.00014082,2]
[331797020,1720765912848,-1518.85,0.00014082,2]
[331797021,1720765912858,-500.0,0.00014082,2]
[331797022,1720765912867,-863.12,0.00014082,2]
[331797023,1720765912877,-500.0,0.00014082,2]
[331797024,1720765912886,-765.3,0.00014082,2]
[331797025,1720765912896,-1173.86,0.00014082,2]
[331797026,1720765912907,-500.0,0.00014082,2]
[331797027,1720765912916,-714.93,0.00014082,2]
[331797028,1720765912926,-500.0,0.00014082,2]
[331797029,1720765912935,-500.0,0.00014082,2]
[331797030,1720765912945,-889.91,0.00014082,2]
[331797031,1720765912955,-500.0,0.00014082,2]
[331797032,1720765912965,-797.27,0.00014082,2]
[331797033,1720765912974,-234.43554547,0.00014082,2]
[331797034,1720765912984,-500.0,0.00014082,2]
[331797035,1720765912994,-628.42535807,0.00014082,2]
[331797036,1720765913004,-508.63,0.00014082,2]
[331797037,1720765913014,-500.0,0.00014082,2]
[331797038,1720765913023,-1002.89,0.00014082,2]
[331797039,1720765913033,-512.8,0.00014082,2]
[331797040,1720765913042,-905.0,0.00014082,2]
[331797041,1720765913052,-500.0,0.00014082,2]
[331797042,1720765913063,-500.0,0.00014082,2]
[331797043,1720765913072,-500.0,0.00014082,2]
[331797044,1720765913082,-500.0,0.00014082,2]
[331797045,1720765913092,-504.61,0.00014082,2]
[331797046,1720765913102,-500.0,0.00014082,2]
[331797047,1720765913112,-998.09,0.00014082,2]
[331797048,1720765913122,-1181.8,0.00014082,2]
[331797049,1720765913132,-500.0,0.00014082,2]
[331797050,1720765913142,-1692.88,0.00014082,2]
[331797051,1720765913152,-500.0,0.00014082,2]
[331797052,1720765913162,-500.0,0.00014082,2]
[331797053,1720765913172,-806.67,0.00014082,2]
[331797054,1720765913182,-1111.86,0.00014082,2]
[331797055,1720765913192,-1115.55,0.00014082,2]
[331797056,1720765913203,-500.0,0.00014082,2]
[331797057,1720765913213,-1152.37,0.00014082,2]
[331797058,1720765913223,-500.0,0.00014082,2]
[331797059,1720765913233,-500.0,0.00014082,2]
[331797060,1720765913243,-1099.21,0.00014082,2]
[331797061,1720765913253,-500.0,0.00014082,2]
[331797062,1720765913263,-500.0,0.00014082,2]
[331797063,1720765913274,-500.0,0.00014082,2]
[331797064,1720765913284,-500.0,0.00014082,2]
[331797065,1720765913293,-500.0,0.00014082,2]
[331797066,1720765913303,-484.12,0.00014082,2]
[331797067,1720765913312,-958.58,0.00014082,2]
[331797068,1720765913322,-500.0,0.00014082,2]
[331797069,1720765913332,-1435.54,0.00014082,2]
[331797070,1720765913342,-500.0,0.00014082,2]
[331797071,1720765913351,-500.0,0.00014082,2]
[331797072,1720765913361,-933.39,0.00014082,2]
[331797073,1720765913371,-885.22,0.00014082,2]
[331797074,1720765913380,-500.0,0.00014082,2]
[331797075,1720765913389,-525.55,0.00014082,2]
[331797076,1720765913399,-578.47,0.00014082,2]
[331797077,1720765913408,-500.0,0.00014082,2]
[331797078,1720765913418,-585.1,0.00014082,2]
[331797079,1720765913427,-768.43,0.00014082,2]
[331797080,1720765913437,-1131.03,0.00014082,2]
[331797081,1720765913446,-500.66,0.00014082,2]
[331797082,1720765913456,-1387.16,0.00014082,2]
[331797083,1720765913466,-769.71,0.00014082,2]
[331797084,1720765913476,-929.61,0.00014082,2]
[331797085,1720765913486,-592.67,0.00014082,2]
[331797086,1720765913496,-500.0,0.00014082,2]
[331797087,1720765913506,-1195.55,0.00014082,2]
[331797088,1720765913519,-1164.92,0.00014082,2]
[331797089,1720765913529,-345.41,0.00014082,2]
[331797090,1720765913539,-832.05,0.00014082,2]
[331797091,1720765913549,-1157.39,0.00014082,2]
[331797092,1720765913559,-965.25,0.00014082,2]
[331797093,1720765913568,-1057.96,0.00014082,2]
[331797094,1720765913578,-500.0,0.00014082,2]
[331797095,1720765913589,-500.0,0.00014082,2]
[331797096,1720765913599,-500.0,0.00014082,2]
[331797097,1720765913609,-663.73,0.00014082,2]
[331797098,1720765913619,-996.83,0.00014082,2]
[331797099,1720765913629,-778.42,0.00014082,2]
[331797100,1720765913638,-500.94,0.00014082,2]
[331797101,1720765913648,-500.0,0.00014082,2]
[331797102,1720765913658,-500.0,0.00014082,2]
[331797103,1720765913668,-1011.24,0.00014082,2]
[331797104,1720765913678,-500.0,0.00014082,2]
[331797105,1720765913687,-724.27,0.00014082,2]
[331797106,1720765913697,-500.0,0.00014082,2]
[331797107,1720765913707,-500.0,0.00014082,2]
[331797108,1720765913717,-948.7,0.00014082,2]
[331797109,1720765913728,-500.0,0.00014082,2]
[331797110,1720765913737,-1338.17,0.00014082,2]
[331797111,1720765913747,-894.67,0.00014082,2]
[331797112,1720765913757,-500.0,0.00014082,2]
[331797113,1720765913767,-635.43,0.00014082,2]
[331797114,1720765913777,-691.16,0.00014082,2]
[331797115,1720765913787,-706.91,0.00014082,2]
[331797116,1720765913796,-500.0,0.00014082,2]
[331797117,1720765913806,-500.0,0.00014082,2]
[331797118,1720765913816,-1648.59,0.00014082,2]
[331797119,1720765913826,-579.34,0.00014082,2]
[331797120,1720765913836,-534.75,0.00014082,2]
[331797121,1720765913846,-6673.84,0.00014082,2]
[331797122,1720765913856,-500.0,0.00014082,2]
[331797123,1720765913866,-791.66,0.00014082,2]
[331797124,1720765913876,-868.6,0.00014082,2]
[331797125,1720765913885,-503.87,0.00014082,2]
[331797126,1720765913895,-500.0,0.00014082,2]
[331797127,1720765913905,-500.0,0.00014082,2]
[331797128,1720765913915,-500.0,0.00014082,2]
[331797129,1720765913926,-1463.05,0.00014082,2]
[331797130,1720765913936,-500.0,0.00014082,2]
[331797131,1720765913947,-1711.11,0.00014082,2]
[331797132,1720765913959,-500.0,0.00014082,2]
[331797133,1720765913969,-940.12,0.00014082,2]